[Event "Titled Tuesday Blitz April 18 Late 2023"]
[White "Yeritsyan, Hayk"]
[Black "Grigoriants, Sergey"]
[WhiteFideId "13307320"]
[BlackFideId "4130804"]
[WhiteElo "2432"]
[BlackElo "2502"]
[Result "0-1"]
[Round "10"]
[TimeControl "180+2"]
[Date "2023.04.18"]
[WhiteClock "0:00:03"]
[BlackClock "0:00:05"]

1. d4 {[%clk 0:03:00]}  Nf6 {[%clk 0:02:53]} 2. Nf3 {[%clk 0:03:01]}  g6 {[%clk 0:02:53]} 3. Bf4 {[%clk 0:03:00]}  Bg7 {[%clk 0:02:52]} 4. h3 {[%clk 0:03:01]}  c5 {[%clk 0:02:51]} 5. e3 {[%clk 0:03:01]}  Qb6 {[%clk 0:02:48]} 6. Nc3 {[%clk 0:02:53]}  cxd4 {[%clk 0:02:42]} 7. exd4 {[%clk 0:02:31]}  O-O {[%clk 0:02:23]} 8. a3 {[%clk 0:02:22]}  d6 {[%clk 0:02:13]} 9. Be2 {[%clk 0:02:21]}  Bf5 {[%clk 0:02:05]} 10. Rb1 {[%clk 0:01:55]}  Nc6 {[%clk 0:01:39]} 11. O-O {[%clk 0:01:51]}  Rac8 {[%clk 0:01:39]} 12. Be3 {[%clk 0:01:32]}  Qa5 {[%clk 0:01:29]} 13. Bd3 {[%clk 0:01:30]}  Bxd3 {[%clk 0:01:07]} 14. Qxd3 {[%clk 0:01:30]}  e5 {[%clk 0:01:08]} 15. dxe5 {[%clk 0:01:11]}  dxe5 {[%clk 0:01:08]} 16. Ne4 {[%clk 0:01:08]}  Rfd8 {[%clk 0:00:59]} 17. Nxf6+ {[%clk 0:01:07]}  Bxf6 {[%clk 0:00:59]} 18. Qe4 {[%clk 0:00:58]}  Qd5 {[%clk 0:00:50]} 19. Qxd5 {[%clk 0:00:47]}  Rxd5 {[%clk 0:00:50]} 20. Rfd1 {[%clk 0:00:47]}  Rxd1+ {[%clk 0:00:49]} 21. Rxd1 {[%clk 0:00:47]}  e4 {[%clk 0:00:50]} 22. Nd4 {[%clk 0:00:45]}  Nxd4 {[%clk 0:00:40]} 23. Bxd4 {[%clk 0:00:45]}  Bxd4 {[%clk 0:00:41]} 24. Rxd4 {[%clk 0:00:45]}  Rxc2 {[%clk 0:00:41]} 25. Rxe4 {[%clk 0:00:23]}  Rxb2 {[%clk 0:00:41]} 26. Re7 {[%clk 0:00:20]}  h5 {[%clk 0:00:36]} 27. h4 {[%clk 0:00:20]}  a5 {[%clk 0:00:36]} 28. g3 {[%clk 0:00:19]}  a4 {[%clk 0:00:36]} 29. Kg2 {[%clk 0:00:18]}  Rb3 {[%clk 0:00:35]} 30. Rc7 {[%clk 0:00:18]}  b5 {[%clk 0:00:34]} 31. Rb7 {[%clk 0:00:17]}  Kg7 {[%clk 0:00:34]} 32. Rc7 {[%clk 0:00:17]}  Kf6 {[%clk 0:00:34]} 33. Rb7 {[%clk 0:00:18]}  Ke6 {[%clk 0:00:35]} 34. Kg1 {[%clk 0:00:17]}  Kd5 {[%clk 0:00:21]} 35. Rxf7 {[%clk 0:00:15]}  Rxa3 {[%clk 0:00:21]} 36. Rg7 {[%clk 0:00:15]}  Rc3 {[%clk 0:00:11]} 37. Rxg6 {[%clk 0:00:15]}  a3 {[%clk 0:00:11]} 38. Ra6 {[%clk 0:00:13]}  b4 {[%clk 0:00:11]} 39. g4 {[%clk 0:00:10]}  hxg4 {[%clk 0:00:12]} 40. h5 {[%clk 0:00:10]}  Rc6 {[%clk 0:00:11]} 41. Ra5+ {[%clk 0:00:08]}  Kc4 {[%clk 0:00:11]} 42. Kg2 {[%clk 0:00:08]}  b3 {[%clk 0:00:05]} 43. Rxa3 {[%clk 0:00:07]}  b2 {[%clk 0:00:05]} 44. Ra1 {[%clk 0:00:03]}  bxa1=Q {[%clk 0:00:05]} 0-1


[Site "https://www.chess.com"]

[Event "Titled Tuesday Blitz April 18 Late 2023"]
[White "Rios Escobar, Adan"]
[Black "Timmermans, Mark"]
[WhiteFideId "3403645"]
[BlackFideId "1026399"]
[WhiteElo "2491"]
[BlackElo "2460"]
[Result "0-1"]
[Round "10"]
[TimeControl "180+2"]
[Date "2023.04.18"]
[WhiteClock "0:00:08"]
[BlackClock "0:00:29"]

1. d4 {[%clk 0:03:00]}  Nf6 {[%clk 0:02:57]} 2. g3 {[%clk 0:03:01]}  e6 {[%clk 0:02:57]} 3. c4 {[%clk 0:03:00]}  d5 {[%clk 0:02:55]} 4. Bg2 {[%clk 0:02:58]}  Be7 {[%clk 0:02:51]} 5. Nf3 {[%clk 0:02:59]}  O-O {[%clk 0:02:50]} 6. O-O {[%clk 0:02:59]}  dxc4 {[%clk 0:02:48]} 7. Qc2 {[%clk 0:03:00]}  b5 {[%clk 0:02:44]} 8. a4 {[%clk 0:02:57]}  b4 {[%clk 0:02:36]} 9. Nfd2 {[%clk 0:02:57]}  c6 {[%clk 0:02:35]} 10. Nxc4 {[%clk 0:02:55]}  Qxd4 {[%clk 0:02:35]} 11. Rd1 {[%clk 0:02:50]}  Qc5 {[%clk 0:02:35]} 12. Be3 {[%clk 0:02:50]}  Qh5 {[%clk 0:02:35]} 13. Nbd2 {[%clk 0:02:45]}  e5 {[%clk 0:02:35]} 14. Nf3 {[%clk 0:02:36]}  Ng4 {[%clk 0:02:28]} 15. h3 {[%clk 0:02:12]}  Nxe3 {[%clk 0:02:27]} 16. Nxe3 {[%clk 0:02:11]}  Bxh3 {[%clk 0:02:25]} 17. Bxh3 {[%clk 0:02:11]}  Qxh3 {[%clk 0:02:26]} 18. Nxe5 {[%clk 0:02:10]}  Qe6 {[%clk 0:02:23]} 19. Nf3 {[%clk 0:02:03]}  c5 {[%clk 0:02:20]} 20. Nd5 {[%clk 0:01:58]}  Rc8 {[%clk 0:02:15]} 21. Qf5 {[%clk 0:01:12]}  Bf8 {[%clk 0:02:02]} 22. Qxe6 {[%clk 0:01:01]}  fxe6 {[%clk 0:02:03]} 23. Nf4 {[%clk 0:01:01]}  c4 {[%clk 0:01:59]} 24. Nxe6 {[%clk 0:00:59]}  c3 {[%clk 0:01:59]} 25. bxc3 {[%clk 0:00:59]}  bxc3 {[%clk 0:02:00]} 26. Nxf8 {[%clk 0:00:55]}  Kxf8 {[%clk 0:01:59]} 27. Rac1 {[%clk 0:00:51]}  Na6 {[%clk 0:01:59]} 28. Ne5 {[%clk 0:00:23]}  c2 {[%clk 0:01:46]} 29. Rd4 {[%clk 0:00:14]}  Ke7 {[%clk 0:01:45]} 30. Nc4 {[%clk 0:00:10]}  Nb4 {[%clk 0:01:44]} 31. Ne3 {[%clk 0:00:07]}  a5 {[%clk 0:01:42]} 32. Nd5+ {[%clk 0:00:03]}  Nxd5 {[%clk 0:01:38]} 33. Rxd5 {[%clk 0:00:04]}  Rab8 {[%clk 0:01:39]} 34. Rb5 {[%clk 0:00:01]}  Rxb5 {[%clk 0:01:26]} 35. axb5 {[%clk 0:00:02]}  Rc5 {[%clk 0:01:21]} 36. b6 {[%clk 0:00:02]}  Kd7 {[%clk 0:01:21]} 37. Kf1 {[%clk 0:00:02]}  a4 {[%clk 0:01:20]} 38. Ke1 {[%clk 0:00:03]}  a3 {[%clk 0:01:19]} 39. Kd2 {[%clk 0:00:03]}  a2 {[%clk 0:01:19]} 40. Ra1 {[%clk 0:00:04]}  Kc6 {[%clk 0:01:18]} 41. Kc1 {[%clk 0:00:04]}  Rf5 {[%clk 0:00:53]} 42. f3 {[%clk 0:00:04]}  Ra5 {[%clk 0:00:45]} 43. b7 {[%clk 0:00:03]}  Kxb7 {[%clk 0:00:46]} 44. Kxc2 {[%clk 0:00:04]}  Kc6 {[%clk 0:00:41]} 45. Kb3 {[%clk 0:00:04]}  Kc5 {[%clk 0:00:39]} 46. e3 {[%clk 0:00:04]}  Rb5+ {[%clk 0:00:33]} 47. Kxa2 {[%clk 0:00:03]}  Ra5+ {[%clk 0:00:33]} 48. Kb2 {[%clk 0:00:03]}  Rxa1 {[%clk 0:00:27]} 49. Kxa1 {[%clk 0:00:04]}  h5 {[%clk 0:00:27]} 50. Kb2 {[%clk 0:00:04]}  g5 {[%clk 0:00:27]} 51. Kc3 {[%clk 0:00:03]}  h4 {[%clk 0:00:28]} 52. gxh4 {[%clk 0:00:03]}  gxh4 {[%clk 0:00:28]} 53. e4 {[%clk 0:00:03]}  h3 {[%clk 0:00:28]} 54. Kd3 {[%clk 0:00:04]}  h2 {[%clk 0:00:28]} 55. Ke3 {[%clk 0:00:05]}  h1=Q {[%clk 0:00:28]} 56. e5 {[%clk 0:00:06]}  Kd5 {[%clk 0:00:28]} 57. f4 {[%clk 0:00:06]}  Qe4+ {[%clk 0:00:29]} 58. Kf2 {[%clk 0:00:06]}  Qxf4+ {[%clk 0:00:29]} 59. Ke2 {[%clk 0:00:07]}  Kxe5 {[%clk 0:00:28]} 60. Kd3 {[%clk 0:00:07]}  Qd4+ {[%clk 0:00:28]} 61. Ke2 {[%clk 0:00:07]}  Kf4 {[%clk 0:00:29]} 62. Ke1 {[%clk 0:00:07]}  Qb2 {[%clk 0:00:29]} 63. Kd1 {[%clk 0:00:07]}  Ke3 {[%clk 0:00:29]} 64. Ke1 {[%clk 0:00:08]}  Qb1# {[%clk 0:00:29]} 0-1


[Site "https://www.chess.com"]

[Event "Titled Tuesday Blitz April 18 Late 2023"]
[White "Sieciechowicz, Marcin"]
[Black "Lorenzo De La Riva, Lazaro"]
[WhiteFideId "1130170"]
[BlackFideId "2268809"]
[WhiteElo "2302"]
[BlackElo "2294"]
[Result "0-1"]
[Round "10"]
[TimeControl "180+2"]
[Date "2023.04.18"]
[WhiteClock "0:00:14"]
[BlackClock "0:00:23"]

1. d4 {[%clk 0:03:00]}  c6 {[%clk 0:03:00]} 2. c4 {[%clk 0:02:58]}  g6 {[%clk 0:03:01]} 3. h4 {[%clk 0:02:48]}  h6 {[%clk 0:02:58]} 4. Nc3 {[%clk 0:02:47]}  Bg7 {[%clk 0:02:58]} 5. e4 {[%clk 0:02:48]}  d6 {[%clk 0:02:58]} 6. f4 {[%clk 0:02:47]}  Nf6 {[%clk 0:02:54]} 7. Be2 {[%clk 0:02:38]}  h5 {[%clk 0:02:53]} 8. Nf3 {[%clk 0:02:35]}  Ng4 {[%clk 0:02:53]} 9. e5 {[%clk 0:02:27]}  d5 {[%clk 0:02:50]} 10. cxd5 {[%clk 0:02:26]}  cxd5 {[%clk 0:02:49]} 11. Ng5 {[%clk 0:02:26]}  Nc6 {[%clk 0:02:48]} 12. e6 {[%clk 0:02:23]}  Nh6 {[%clk 0:02:37]} 13. exf7+ {[%clk 0:02:15]}  Nxf7 {[%clk 0:02:38]} 14. Be3 {[%clk 0:02:15]}  Bf5 {[%clk 0:02:35]} 15. Bd3 {[%clk 0:02:10]}  Qd7 {[%clk 0:02:29]} 16. Bxf5 {[%clk 0:02:08]}  Qxf5 {[%clk 0:02:28]} 17. Qf3 {[%clk 0:02:06]}  e6 {[%clk 0:02:26]} 18. Rd1 {[%clk 0:02:03]}  O-O {[%clk 0:02:21]} 19. O-O {[%clk 0:02:00]}  Nxg5 {[%clk 0:02:19]} 20. hxg5 {[%clk 0:02:01]}  Qf7 {[%clk 0:02:05]} 21. g4 {[%clk 0:01:53]}  hxg4 {[%clk 0:02:03]} 22. Qxg4 {[%clk 0:01:54]}  Qf5 {[%clk 0:02:03]} 23. Qxf5 {[%clk 0:01:54]}  Rxf5 {[%clk 0:02:02]} 24. Ne2 {[%clk 0:01:54]}  Rf7 {[%clk 0:02:00]} 25. Kg2 {[%clk 0:01:49]}  Rc8 {[%clk 0:02:00]} 26. Ng1 {[%clk 0:01:47]}  Ne7 {[%clk 0:01:58]} 27. Nf3 {[%clk 0:01:46]}  Nf5 {[%clk 0:01:59]} 28. Bf2 {[%clk 0:01:46]}  Rc2 {[%clk 0:01:55]} 29. Rd2 {[%clk 0:01:40]}  Rfc7 {[%clk 0:01:54]} 30. Rfd1 {[%clk 0:01:38]}  Kf7 {[%clk 0:01:53]} 31. a3 {[%clk 0:01:30]}  b5 {[%clk 0:01:51]} 32. Kf1 {[%clk 0:01:29]}  a5 {[%clk 0:01:49]} 33. Ke2 {[%clk 0:01:29]}  b4 {[%clk 0:01:46]} 34. axb4 {[%clk 0:01:30]}  axb4 {[%clk 0:01:46]} 35. Kd3 {[%clk 0:01:30]}  b3 {[%clk 0:01:44]} 36. Ra1 {[%clk 0:01:22]}  Rc1 {[%clk 0:01:37]} 37. Ra3 {[%clk 0:01:16]}  Rb7 {[%clk 0:01:35]} 38. Ra6 {[%clk 0:01:11]}  Rd7 {[%clk 0:01:23]} 39. Rb6 {[%clk 0:01:07]}  Nd6 {[%clk 0:01:23]} 40. Rxb3 {[%clk 0:01:06]}  Ne4 {[%clk 0:01:21]} 41. Re2 {[%clk 0:01:02]}  Rf1 {[%clk 0:01:20]} 42. Ke3 {[%clk 0:00:52]}  Rc7 {[%clk 0:01:17]} 43. Be1 {[%clk 0:00:46]}  Nd6 {[%clk 0:01:16]} 44. Ne5+ {[%clk 0:00:36]}  Bxe5 {[%clk 0:01:15]} 45. dxe5 {[%clk 0:00:36]}  Nf5+ {[%clk 0:01:14]} 46. Kd2 {[%clk 0:00:35]}  Rxf4 {[%clk 0:01:14]} 47. Rh2 {[%clk 0:00:31]}  Rd4+ {[%clk 0:01:11]} 48. Rd3 {[%clk 0:00:31]}  Re4 {[%clk 0:01:02]} 49. Rh7+ {[%clk 0:00:28]}  Ng7 {[%clk 0:01:03]} 50. Rf3+ {[%clk 0:00:27]}  Kg8 {[%clk 0:01:03]} 51. Rh6 {[%clk 0:00:28]}  Rcc4 {[%clk 0:00:49]} 52. Bf2 {[%clk 0:00:21]}  Rf4 {[%clk 0:00:47]} 53. Rxf4 {[%clk 0:00:20]}  Rxf4 {[%clk 0:00:47]} 54. Be3 {[%clk 0:00:21]}  Rb4 {[%clk 0:00:44]} 55. Kc3 {[%clk 0:00:17]}  Re4 {[%clk 0:00:45]} 56. Bc5 {[%clk 0:00:16]}  Rc4+ {[%clk 0:00:38]} 57. Kd3 {[%clk 0:00:15]}  Rxc5 {[%clk 0:00:38]} 58. Rxg6 {[%clk 0:00:16]}  Rc4 {[%clk 0:00:34]} 59. b3 {[%clk 0:00:15]}  Re4 {[%clk 0:00:33]} 60. Kc3 {[%clk 0:00:15]}  Rxe5 {[%clk 0:00:32]} 61. b4 {[%clk 0:00:16]}  Rf5 {[%clk 0:00:30]} 62. Kd4 {[%clk 0:00:14]}  Rf4+ {[%clk 0:00:29]} 63. Kc5 {[%clk 0:00:13]}  Rc4+ {[%clk 0:00:30]} 64. Kb5 {[%clk 0:00:13]}  Rc1 {[%clk 0:00:29]} 65. Ka6 {[%clk 0:00:13]}  d4 {[%clk 0:00:29]} 66. Rf6 {[%clk 0:00:12]}  d3 {[%clk 0:00:28]} 67. Rf2 {[%clk 0:00:12]}  e5 {[%clk 0:00:28]} 68. b5 {[%clk 0:00:12]}  e4 {[%clk 0:00:28]} 69. b6 {[%clk 0:00:13]}  e3 {[%clk 0:00:27]} 70. Rb2 {[%clk 0:00:13]}  Ra1+ {[%clk 0:00:26]} 71. Kb5 {[%clk 0:00:13]}  Ra8 {[%clk 0:00:23]} 72. b7 {[%clk 0:00:13]}  Rb8 {[%clk 0:00:23]} 73. Kc6 {[%clk 0:00:14]}  d2 {[%clk 0:00:23]} 0-1


[Site "https://www.chess.com"]

[Event "Titled Tuesday Blitz April 18 Late 2023"]
[White "Amburgy, Ryan"]
[Black "Liu, Eric"]
[WhiteFideId "30924820"]
[BlackFideId "30960240"]
[WhiteElo "2134"]
[BlackElo "2094"]
[Result "0-1"]
[Round "10"]
[TimeControl "180+2"]
[Date "2023.04.18"]
[WhiteClock "0:00:16"]
[BlackClock "0:00:37"]

1. Nf3 {[%clk 0:03:00]}  b6 {[%clk 0:03:00]} 2. d4 {[%clk 0:02:58]}  Bb7 {[%clk 0:03:01]} 3. c4 {[%clk 0:02:58]}  e6 {[%clk 0:03:01]} 4. a3 {[%clk 0:02:58]}  h5 {[%clk 0:03:01]} 5. Nc3 {[%clk 0:02:54]}  h4 {[%clk 0:03:00]} 6. h3 {[%clk 0:02:55]}  Nf6 {[%clk 0:02:58]} 7. Bg5 {[%clk 0:02:52]}  Be7 {[%clk 0:02:58]} 8. e3 {[%clk 0:02:52]}  Ne4 {[%clk 0:02:56]} 9. Bxe7 {[%clk 0:02:52]}  Qxe7 {[%clk 0:02:57]} 10. Nxe4 {[%clk 0:02:52]}  Bxe4 {[%clk 0:02:58]} 11. Bd3 {[%clk 0:02:53]}  Bxd3 {[%clk 0:02:54]} 12. Qxd3 {[%clk 0:02:54]}  d5 {[%clk 0:02:54]} 13. Rc1 {[%clk 0:02:48]}  O-O {[%clk 0:02:49]} 14. O-O {[%clk 0:02:45]}  Rc8 {[%clk 0:02:49]} 15. cxd5 {[%clk 0:02:37]}  exd5 {[%clk 0:02:50]} 16. b4 {[%clk 0:02:37]}  Nd7 {[%clk 0:02:47]} 17. Rc6 {[%clk 0:02:33]}  a5 {[%clk 0:02:27]} 18. b5 {[%clk 0:02:33]}  Nb8 {[%clk 0:02:27]} 19. Rc3 {[%clk 0:02:29]}  c5 {[%clk 0:02:28]} 20. dxc5 {[%clk 0:02:16]}  Rxc5 {[%clk 0:02:29]} 21. Rxc5 {[%clk 0:02:08]}  Qxc5 {[%clk 0:02:30]} 22. Nxh4 {[%clk 0:02:05]}  Nd7 {[%clk 0:02:27]} 23. Nf5 {[%clk 0:02:02]}  g6 {[%clk 0:02:19]} 24. Nd4 {[%clk 0:01:55]}  Ne5 {[%clk 0:02:19]} 25. Qb3 {[%clk 0:01:41]}  a4 {[%clk 0:02:13]} 26. Qa2 {[%clk 0:01:33]}  Nc4 {[%clk 0:01:56]} 27. Ra1 {[%clk 0:01:30]}  Re8 {[%clk 0:01:49]} 28. Qc2 {[%clk 0:01:19]}  Ra8 {[%clk 0:01:34]} 29. Qc3 {[%clk 0:01:08]}  Nd6 {[%clk 0:01:34]} 30. Rc1 {[%clk 0:01:04]}  Qxc3 {[%clk 0:01:06]} 31. Rxc3 {[%clk 0:01:05]}  Ra5 {[%clk 0:01:06]} 32. Nc6 {[%clk 0:00:33]}  Rxb5 {[%clk 0:01:06]} 33. Rd3 {[%clk 0:00:34]}  Nc4 {[%clk 0:00:54]} 34. Ne7+ {[%clk 0:00:21]}  Kf8 {[%clk 0:00:54]} 35. Nxd5 {[%clk 0:00:22]}  Rb3 {[%clk 0:00:47]} 36. Rd4 {[%clk 0:00:16]}  b5 {[%clk 0:00:48]} 37. Nc7 {[%clk 0:00:16]}  Nxa3 {[%clk 0:00:47]} 38. f4 {[%clk 0:00:15]}  Nc2 {[%clk 0:00:41]} 39. Rd8+ {[%clk 0:00:15]}  Ke7 {[%clk 0:00:41]} 40. Ra8 {[%clk 0:00:16]}  a3 {[%clk 0:00:40]} 41. Kf2 {[%clk 0:00:15]}  Rb2 {[%clk 0:00:41]} 42. Kf3 {[%clk 0:00:14]}  a2 {[%clk 0:00:41]} 43. Nxb5 {[%clk 0:00:14]}  a1=Q {[%clk 0:00:40]} 44. Rxa1 {[%clk 0:00:15]}  Nxa1 {[%clk 0:00:41]} 45. Nd4 {[%clk 0:00:15]}  Nb3 {[%clk 0:00:39]} 46. Nc6+ {[%clk 0:00:15]}  Kd6 {[%clk 0:00:39]} 47. Ne5 {[%clk 0:00:16]}  Nd2+ {[%clk 0:00:38]} 48. Kg4 {[%clk 0:00:16]}  Rb7 {[%clk 0:00:37]} 0-1


[Site "https://www.chess.com"]

[Event "Titled Tuesday Blitz April 18 Late 2023"]
[White "Jovic, Stanoje"]
[Black "Di Berardino, Diego Rafael"]
[WhiteFideId "905020"]
[BlackFideId "2105446"]
[WhiteElo "2236"]
[BlackElo "2432"]
[Result "1/2-1/2"]
[Round "10"]
[TimeControl "180+2"]
[Date "2023.04.18"]
[WhiteClock "0:00:23"]
[BlackClock "0:00:06"]

1. c4 {[%clk 0:03:00]}  e6 {[%clk 0:02:56]} 2. g3 {[%clk 0:03:01]}  d5 {[%clk 0:02:56]} 3. Bg2 {[%clk 0:03:01]}  Nf6 {[%clk 0:02:57]} 4. Nf3 {[%clk 0:03:01]}  Be7 {[%clk 0:02:56]} 5. O-O {[%clk 0:03:01]}  O-O {[%clk 0:02:57]} 6. d4 {[%clk 0:03:01]}  dxc4 {[%clk 0:02:54]} 7. Ne5 {[%clk 0:03:01]}  Nc6 {[%clk 0:02:53]} 8. Bxc6 {[%clk 0:03:01]}  bxc6 {[%clk 0:02:53]} 9. Nxc6 {[%clk 0:03:02]}  Qe8 {[%clk 0:02:54]} 10. Nxe7+ {[%clk 0:03:03]}  Qxe7 {[%clk 0:02:55]} 11. Na3 {[%clk 0:03:03]}  e5 {[%clk 0:02:54]} 12. dxe5 {[%clk 0:02:58]}  Qxe5 {[%clk 0:02:54]} 13. Nxc4 {[%clk 0:02:58]}  Qh5 {[%clk 0:02:44]} 14. f3 {[%clk 0:02:58]}  Re8 {[%clk 0:02:42]} 15. e4 {[%clk 0:02:50]}  Ba6 {[%clk 0:02:37]} 16. b3 {[%clk 0:02:44]}  Rad8 {[%clk 0:02:26]} 17. Qc2 {[%clk 0:02:36]}  Nd7 {[%clk 0:02:06]} 18. Be3 {[%clk 0:02:28]}  Ne5 {[%clk 0:02:03]} 19. Kg2 {[%clk 0:02:16]}  Rd3 {[%clk 0:01:34]} 20. Rae1 {[%clk 0:01:57]}  Red8 {[%clk 0:01:21]} 21. Nxe5 {[%clk 0:01:51]}  Qxe5 {[%clk 0:01:16]} 22. Rf2 {[%clk 0:01:47]}  Qa5 {[%clk 0:01:08]} 23. Rc1 {[%clk 0:01:40]}  Rxe3 {[%clk 0:01:06]} 24. Qxc7 {[%clk 0:01:40]}  Qb6 {[%clk 0:00:50]} 25. Qxb6 {[%clk 0:01:36]}  axb6 {[%clk 0:00:50]} 26. Rc6 {[%clk 0:01:35]}  h6 {[%clk 0:00:38]} 27. Rxb6 {[%clk 0:01:34]}  Bd3 {[%clk 0:00:39]} 28. a4 {[%clk 0:01:30]}  Re1 {[%clk 0:00:37]} 29. a5 {[%clk 0:01:28]}  Ra1 {[%clk 0:00:37]} 30. b4 {[%clk 0:01:27]}  Ra3 {[%clk 0:00:27]} 31. g4 {[%clk 0:01:24]}  Kh7 {[%clk 0:00:24]} 32. h4 {[%clk 0:01:23]}  g5 {[%clk 0:00:23]} 33. h5 {[%clk 0:01:17]}  Kg7 {[%clk 0:00:23]} 34. Rb2 {[%clk 0:01:08]}  Rc8 {[%clk 0:00:21]} 35. Rd6 {[%clk 0:00:56]}  Rcc3 {[%clk 0:00:19]} 36. Rf2 {[%clk 0:00:52]}  Bb5 {[%clk 0:00:17]} 37. Rb6 {[%clk 0:00:50]}  Bd3 {[%clk 0:00:16]} 38. Rd6 {[%clk 0:00:48]}  Rcb3 {[%clk 0:00:16]} 39. Rd4 {[%clk 0:00:46]}  Bb5 {[%clk 0:00:15]} 40. Kg3 {[%clk 0:00:42]}  Bc6 {[%clk 0:00:15]} 41. Kg2 {[%clk 0:00:40]}  Bb7 {[%clk 0:00:15]} 42. Kg3 {[%clk 0:00:34]}  Bc6 {[%clk 0:00:15]} 43. Kg2 {[%clk 0:00:33]}  Bb5 {[%clk 0:00:14]} 44. Kg3 {[%clk 0:00:32]}  Ra4 {[%clk 0:00:15]} 45. Kg2 {[%clk 0:00:28]}  Raxb4 {[%clk 0:00:15]} 46. Rxb4 {[%clk 0:00:27]}  Rxb4 {[%clk 0:00:16]} 47. Ra2 {[%clk 0:00:27]}  Ra4 {[%clk 0:00:14]} 48. Rxa4 {[%clk 0:00:26]}  Bxa4 {[%clk 0:00:14]} 49. a6 {[%clk 0:00:26]}  Kf6 {[%clk 0:00:14]} 50. a7 {[%clk 0:00:26]}  Bc6 {[%clk 0:00:15]} 51. Kf2 {[%clk 0:00:25]}  Ke5 {[%clk 0:00:14]} 52. Ke3 {[%clk 0:00:25]}  f6 {[%clk 0:00:15]} 53. Kf2 {[%clk 0:00:24]}  Kf4 {[%clk 0:00:15]} 54. Ke2 {[%clk 0:00:24]}  Kg3 {[%clk 0:00:14]} 55. Ke3 {[%clk 0:00:23]}  Ba8 {[%clk 0:00:13]} 56. Ke2 {[%clk 0:00:23]}  Kg2 {[%clk 0:00:12]} 57. Ke3 {[%clk 0:00:22]}  Kg3 {[%clk 0:00:11]} 58. Ke2 {[%clk 0:00:23]}  Kf4 {[%clk 0:00:12]} 59. Kf2 {[%clk 0:00:23]}  Ke5 {[%clk 0:00:12]} 60. Ke3 {[%clk 0:00:23]}  Ke6 {[%clk 0:00:12]} 61. Kd4 {[%clk 0:00:24]}  Kd6 {[%clk 0:00:13]} 62. Ke3 {[%clk 0:00:23]}  Kc5 {[%clk 0:00:13]} 63. Kd3 {[%clk 0:00:23]}  Kb6 {[%clk 0:00:13]} 64. Kd4 {[%clk 0:00:23]}  Kxa7 {[%clk 0:00:13]} 65. Ke3 {[%clk 0:00:22]}  Kb6 {[%clk 0:00:14]} 66. f4 {[%clk 0:00:23]}  Kc5 {[%clk 0:00:14]} 67. e5 {[%clk 0:00:23]}  gxf4+ {[%clk 0:00:07]} 68. Kxf4 {[%clk 0:00:23]}  fxe5+ {[%clk 0:00:08]} 69. Kxe5 {[%clk 0:00:23]}  Bd5 {[%clk 0:00:04]} 70. Kf6 {[%clk 0:00:23]}  Bf3 {[%clk 0:00:03]} 71. g5 {[%clk 0:00:22]}  hxg5 {[%clk 0:00:04]} 72. h6 {[%clk 0:00:22]}  Be4 {[%clk 0:00:04]} 73. Kxg5 {[%clk 0:00:22]}  Kd4 {[%clk 0:00:05]} 74. Kf6 {[%clk 0:00:23]}  Ke3 {[%clk 0:00:05]} 75. Kg7 {[%clk 0:00:23]}  Kf4 {[%clk 0:00:05]} 76. h7 {[%clk 0:00:23]}  Bxh7 {[%clk 0:00:06]} 1/2-1/2


[Site "https://www.chess.com"]